{"text_format":"3","workbook":"xlsx","n_sheets":2,"sheets":["Költségvetés összegzése","Költségvetés részletei"],"not_rendered":{"images":1,"defined_names":1},"read":"whole","date_system":"1900"}

{"sheet":"Költségvetés összegzése","index":0,"n_rows":28,"n_cols":7,"rows_kept":28}
[{"$nulls":6}," "]
[]
[null,"TELJES ESKÜVŐI KÖLTSÉGVETÉS",{"v":20000,"d":"20,000 Ft"}]
[]
[null,"KIADÁSOK","Terhelés \n%","Beosztott költségvetés","Becsült \nKöltségek","Tényleges \nKöltségek"]
[null,"Fogadás",{"v":0.5,"d":"50%"},{"$f":"Teljes_esküvői_költségkeret*'Költségvetés összegzése'!$C6","v":{"v":10000,"d":"10,000 Ft"}},{"$f":"Táblázat_Fogadás[[#Totals],[Becsült költségek]]","v":{"v":0,"d":"0 Ft"}},{"$f":"Táblázat_Fogadás[[#Totals],[Tényleges költségek]]","v":{"v":0,"d":"0 Ft"}}]
[null,"Öltözék",{"v":0.1,"d":"10%"},{"$f":"Teljes_esküvői_költségkeret*'Költségvetés összegzése'!$C7","v":{"v":2000,"d":"2,000 Ft"}},{"$f":"Táblázat_Öltözék[[#Totals],[Becsült költségek]]","v":{"v":0,"d":"0 Ft"}},{"$f":"Táblázat_Öltözék[[#Totals],[Tényleges költségek]]","v":{"v":0,"d":"0 Ft"}}]
[null,"Virágok és díszítés",{"v":0.1,"d":"10%"},{"$f":"Teljes_esküvői_költségkeret*'Költségvetés összegzése'!$C8","v":{"v":2000,"d":"2,000 Ft"}},{"$f":"Táblázat_VirágokÉsDekoráció[[#Totals],[Becsült költségek]]","v":{"v":0,"d":"0 Ft"}},{"$f":"Táblázat_VirágokÉsDekoráció[[#Totals],[Tényleges költségek]]","v":{"v":0,"d":"0 Ft"}}]
[null,"Zene",{"v":0.1,"d":"10%"},{"$f":"Teljes_esküvői_költségkeret*'Költségvetés összegzése'!$C9","v":{"v":2000,"d":"2,000 Ft"}},{"$f":"Táblázat_Zene[[#Totals],[Becsült költségek]]","v":{"v":0,"d":"0 Ft"}},{"$f":"Táblázat_Zene[[#Totals],[Tényleges költségek]]","v":{"v":0,"d":"0 Ft"}}]
[null,"Fényképek és videók",{"v":0.1,"d":"10%"},{"$f":"Teljes_esküvői_költségkeret*'Költségvetés összegzése'!$C10","v":{"v":2000,"d":"2,000 Ft"}},{"$f":"Táblázat_FényképÉsVideó[[#Totals],[Becsült költségek]]","v":{"v":0,"d":"0 Ft"}},{"$f":"Táblázat_FényképÉsVideó[[#Totals],[Tényleges költségek]]","v":{"v":0,"d":"0 Ft"}}]
[null,"Támogatások és ajándékok",{"v":0.03,"d":"3%"},{"$f":"Teljes_esküvői_költségkeret*'Költségvetés összegzése'!$C11","v":{"v":600,"d":"600 Ft"}},{"$f":"Táblázat_Ajándékok[[#Totals],[Becsült költségek]]","v":{"v":0,"d":"0 Ft"}},{"$f":"Táblázat_Ajándékok[[#Totals],[Tényleges költségek]]","v":{"v":0,"d":"0 Ft"}}]
[null,"Szertartás",{"v":0.02,"d":"2%"},{"$f":"Teljes_esküvői_költségkeret*'Költségvetés összegzése'!$C12","v":{"v":400,"d":"400 Ft"}},{"$f":"Táblázat_Ceremónia[[#Totals],[Becsült költségek]]","v":{"v":0,"d":"0 Ft"}},{"$f":"Táblázat_Ceremónia[[#Totals],[Tényleges költségek]]","v":{"v":0,"d":"0 Ft"}}]
[null,"Írószer",{"v":0.02,"d":"2%"},{"$f":"Teljes_esküvői_költségkeret*'Költségvetés összegzése'!$C13","v":{"v":400,"d":"400 Ft"}},{"$f":"Table_Papíráru[[#Totals],[Becsült költségek]]","v":{"v":0,"d":"0 Ft"}},{"$f":"Table_Papíráru[[#Totals],[Tényleges költségek]]","v":{"v":0,"d":"0 Ft"}}]
[null,"Jegygyűrűk",{"v":0.02,"d":"2%"},{"$f":"Teljes_esküvői_költségkeret*'Költségvetés összegzése'!$C14","v":{"v":400,"d":"400 Ft"}},{"$f":"Táblázat_Jegygyűrűk[[#Totals],[Becsült költségek]]","v":{"v":0,"d":"0 Ft"}},{"$f":"Táblázat_Jegygyűrűk[[#Totals],[Tényleges költségek]]","v":{"v":0,"d":"0 Ft"}}]
[null,"Fuvarozás",{"v":0.01,"d":"1%"},{"$f":"Teljes_esküvői_költségkeret*'Költségvetés összegzése'!$C15","v":{"v":200,"d":"200 Ft"}},{"$f":"Táblázat_Közlekedés[[#Totals],[Becsült költségek]]","v":{"v":0,"d":"0 Ft"}},{"$f":"Táblázat_Közlekedés[[#Totals],[Tényleges költségek]]","v":{"v":0,"d":"0 Ft"}}]
[null,"Összeg",{"$f":"SUM(C6:C15)","v":{"v":1,"d":"100%"}},{"$f":"SUM(D6:D15)","v":{"v":20000,"d":"20,000 Ft"}},{"v":0,"d":"0 Ft"},{"v":0,"d":"0 Ft"}]
[]
[null,"ADOMÁNYOK"]
[null,"Az alap forrása","Hozzájárulás"]
[null,"Megtakarítások",{"v":10000,"d":"10,000 Ft"}]
[null,"1. partner édesanyja & édesapja",{"v":4000,"d":"4,000 Ft"}]
[null,"1. partner nagyszülei",{"v":2000,"d":"2,000 Ft"}]
[null,"2. partner édesanyja & édesapja",{"v":4000,"d":"4,000 Ft"}]
[null,"2. partner nagyszülei",{"v":4000,"d":"4,000 Ft"}]
[null,"Egyéb hozzájárulások",{"v":2000,"d":"2,000 Ft"}]
[null,"Összeg",{"$f":"SUBTOTAL(109,Táblázat_Hozzájárulások[Hozzájárulás])","v":{"v":26000,"d":"26,000 Ft"}}]
[]
[null,{"$f":"IF(Táblázat_Hozzájárulások[[#Totals],[Hozzájárulás]]<Teljes_esküvői_költségkeret,\"Különbség a felállításhoz\",\"Rendelkezésre álló extra alapok\")","v":"Rendelkezésre álló extra alapok"},{"$f":"IF(Táblázat_Hozzájárulások[[#Totals],[Hozzájárulás]]<Teljes_esküvői_költségkeret,Teljes_esküvői_költségkeret-Táblázat_Hozzájárulások[[#Totals],[Hozzájárulás]],Táblázat_Hozzájárulások[[#Totals],[Hozzájárulás]]-Teljes_esküvői_költségkeret)","v":{"v":6000,"d":"6,000 Ft"}}]

{"sheet":"Költségvetés részletei","index":1,"n_rows":80,"n_cols":4,"rows_kept":80}
[]
[null,"FOGADÁS","Becsült költségek","Tényleges költségek"]
[null,"Helyszín és kölcsönzők"]
[null,"Étel és felszolgálás"]
[null,"Italok"]
[null,"Torta"]
[null,"Vegyes díjak"]
[null,"Összeg",{"$f":"SUBTOTAL(109,Táblázat_Fogadás[Becsült költségek])","v":{"v":0,"d":"0.00 Ft"}},{"$f":"SUBTOTAL(109,Táblázat_Fogadás[Tényleges költségek])","v":{"v":0,"d":"0.00 Ft"}}]
[]
[null,"ÖLTÖZÉK","Becsült költségek","Tényleges költségek"]
[null,"Szmoking, öltöny és/vagy ruha"]
[null,"Változtatások"]
[null,"Fejdísz és fátyol"]
[null,"Kiegészítő"]
[null,"Haj és smink"]
[null,"Vegyes díjak"]
[null,"Összeg",{"$f":"SUBTOTAL(109,Táblázat_Öltözék[Becsült költségek])","v":{"v":0,"d":"0.00 Ft"}},{"$f":"SUBTOTAL(109,Táblázat_Öltözék[Tényleges költségek])","v":{"v":0,"d":"0.00 Ft"}}]
[]
[null,"VIRÁGOK ÉS DÍSZÍTÉS","Becsült költségek","Tényleges költségek"]
[null,"A virágok szertartási elrendezése"]
[null,"Virágoslány szirmai és kosara"]
[null,"Gyűrűpárna"]
[null,"Csokrok"]
[null,"Kitűzők"]
[null,"Virágcsokrok"]
[null,"Fogadás dekorációja"]
[null,"Világítás"]
[null,"Vegyes díjak"]
[null,"Összeg",{"$f":"SUBTOTAL(109,Táblázat_VirágokÉsDekoráció[Becsült költségek])","v":{"v":0,"d":"0.00 Ft"}},{"$f":"SUBTOTAL(109,Táblázat_VirágokÉsDekoráció[Tényleges költségek])","v":{"v":0,"d":"0.00 Ft"}}]
[]
[null,"ZENE","Becsült költségek","Tényleges költségek"]
[null,"Szertartási zenészek"]
[null,"Koccintási zenészek"]
[null,"A fogadás alatti zenekar, DJ vagy szórakoztatás"]
[null,"Hangrendszer vagy táncparkett bérlés"]
[null,"Vegyes díjak"]
[null,"Összeg",{"$f":"SUBTOTAL(109,Táblázat_Zene[Becsült költségek])","v":{"v":0,"d":"0.00 Ft"}},{"$f":"SUBTOTAL(109,Táblázat_Zene[Tényleges költségek])","v":{"v":0,"d":"0.00 Ft"}}]
[]
[null,"FÉNYKÉPEK ÉS VIDEÓK","Becsült költségek","Tényleges költségek"]
[null,"Fényképezés"]
[null,"Videózás"]
[null,"További nyomatok és albumok"]
[null,"Vegyes díjak"]
[null,"Összeg",{"$f":"SUBTOTAL(109,Táblázat_FényképÉsVideó[Becsült költségek])","v":{"v":0,"d":"0.00 Ft"}},{"$f":"SUBTOTAL(109,Táblázat_FényképÉsVideó[Tényleges költségek])","v":{"v":0,"d":"0.00 Ft"}}]
[]
[null,"TÁMOGATÁSOK ÉS AJÁNDÉKOK","Becsült költségek","Tényleges költségek"]
[null,"Üdvözlő ajándékok"]
[null,"Party-ajándékok"]
[null,"Vegyes díjak"]
[null,"Összeg",{"$f":"SUBTOTAL(109,Táblázat_Ajándékok[Becsült költségek])","v":{"v":0,"d":"0.00 Ft"}},{"$f":"SUBTOTAL(109,Táblázat_Ajándékok[Tényleges költségek])","v":{"v":0,"d":"0.00 Ft"}}]
[]
[null,"SZERTARTÁS","Becsült költségek","Tényleges költségek"]
[null,"Késedelmi díj"]
[null,"Tiszteletdíj vagy egyházi adomány"]
[null,"Vegyes díjak"]
[null,"Összeg",{"$f":"SUBTOTAL(109,Táblázat_Ceremónia[Becsült költségek])","v":{"v":0,"d":"0.00 Ft"}},{"$f":"SUBTOTAL(109,Táblázat_Ceremónia[Tényleges költségek])","v":{"v":0,"d":"0.00 Ft"}}]
[]
[null,"ÍRÓSZER","Becsült költségek","Tényleges költségek"]
[null,"Meghívó kártyák"]
[null,"Meghívók és válaszlapok"]
[null,"Programok"]
[null,"Ülőhely- és névkártyák"]
[null,"Menü kártyák"]
[null,"Köszönőkártyák"]
[null,"Postaköltség"]
[null,"Vegyes díjak"]
[null,"Összeg",{"$f":"SUBTOTAL(109,Table_Papíráru[Becsült költségek])","v":{"v":0,"d":"0.00 Ft"}},{"$f":"SUBTOTAL(109,Table_Papíráru[Tényleges költségek])","v":{"v":0,"d":"0.00 Ft"}}]
[]
[null,"JEGYGYŰRŰK","Becsült költségek","Tényleges költségek"]
[null,"Jegygyűrűk"]
[null,"Gyűrű kiegészítők"]
[null,"Összeg",{"$f":"SUBTOTAL(109,Táblázat_Jegygyűrűk[Becsült költségek])","v":{"v":0,"d":"0.00 Ft"}},{"$f":"SUBTOTAL(109,Táblázat_Jegygyűrűk[Tényleges költségek])","v":{"v":0,"d":"0.00 Ft"}}]
[]
[null,"FUVAROZÁS","Becsült költségek","Tényleges költségek"]
[null,"Fő autókölcsönzés"]
[null,"Vendég autókölcsönzés"]
[null,"Fuvarozás a városon kívüli vendégeknek"]
[null,"Parkolási segédek"]
[null,"Vegyes díjak"]
[null,"Összeg",{"$f":"SUBTOTAL(109,Táblázat_Közlekedés[Becsült költségek])","v":{"v":0,"d":"0.00 Ft"}},{"$f":"SUBTOTAL(109,Táblázat_Közlekedés[Tényleges költségek])","v":{"v":0,"d":"0.00 Ft"}}]